{"text_format":"1","workbook":"xlsx","n_sheets":13,"sheets":["alapadatok","Munka4","Munka5","Munka6","Munka7","Munka8","Munka9","ismetlodes","pivotalap","surites","reszeredmeny","2. futtatas","vegeredmeny"],"not_rendered":{"charts":0,"images":0,"macros":0,"external_links":0,"defined_names":3,"comments":0,"pivot_tables":1},"unopened":[],"bounds":{"document_bytes":16777216,"sheet_cells":100000,"rows_first":2000,"rows_last":500,"rows_between":2000,"halvings":0,"cell_chars":16384,"cell_head_chars":4096},"cells_cut":0,"cells_raw":0,"read":"whole","date_system":"1900"}

{"sheet":"alapadatok","index":0,"n_rows":40,"n_cols":20,"rows_kept":40,"cut":false,"hidden":false,"merged":[[4,1,21,1],[22,1,39,1]]}
["sorszám","típus","paraméter","mértékegység","Zátony Nyomda","Sziget Nyomda","Hegy Nyomda","Óceán Nyomda","Völgy Nyomda","Sivatag Nyomda","szórás","irány",null,{"$f":"E1","v":"Zátony Nyomda"},{"$f":"F1","v":"Sziget Nyomda"},"Hegy Nyomda","Óceán Nyomda","Völgy Nyomda","Sivatag Nyomda"]
[1,"Cégadat 1","Cég tőkeerőssége (saját tőke/forrás)","%",89,112,91,145,67,88,{"$f":"STDEV(E2:J2)","v":26.807959017177478},0,null,{"$f":"RANK(E2,$E2:$J2,$L2)","v":4},{"$f":"RANK(F2,$E2:$J2,$L2)","v":2},{"$f":"RANK(G2,$E2:$J2,$L2)","v":3},{"$f":"RANK(H2,$E2:$J2,$L2)","v":1},{"$f":"RANK(I2,$E2:$J2,$L2)","v":6},{"$f":"RANK(J2,$E2:$J2,$L2)","v":5},{"$f":"C2","v":"Cég tőkeerőssége (saját tőke/forrás)"}]
[2,"Cégadat 2","Cég nettó árbevétele a tavalyi évben","millió Ft",15,2.5,34,83,16,5,{"$f":"STDEV(E3:J3)","v":30.090557765961513},0,null,{"$f":"RANK(E3,$E3:$J3,$L3)","v":4},6,2,1,3,5,{"$f":"C3","v":"Cég nettó árbevétele a tavalyi évben"}]
[3,"Cégadat 3","Referenciák száma a tavalyi évben (100.000Ft feletti össz.értékű teljesült szerződések)","db",8,6,15,31,22,11,9.4815610529068479,0,null,5,6,3,1,2,4,"Referenciák száma a tavalyi évben (100.000Ft feletti össz.értékű teljesült szerződések)"]
[4,"Árak","1.000db prospektus (műnyomó 150g/m2, 99*210mm, 4+4 színnyomás) legyártásának nettó ára","Ft/db",3.8,3.8,3.61,4.45,6.61,4.4539999999999997,1.1149995515694155,1,null,2,2,1,4,6,5,"1.000db prospektus (műnyomó 150g/m2, 99*210mm, 4+4 színnyomás) legyártásának nettó ára"]
[5,null,"5.000db prospektus (műnyomó 150g/m2, 99*210mm, 4+4 színnyomás) legyártásának nettó ára","Ft/db",2.8,2.75,2.6219999999999999,3.25,5.6219999999999999,3.4088000000000003,1.1266925756389796,1,null,3,2,1,4,6,5,"5.000db prospektus (műnyomó 150g/m2, 99*210mm, 4+4 színnyomás) legyártásának nettó ára"]
[6,null,"10.000db prospektus (műnyomó 150g/m2, 99*210mm, 4+4 színnyomás) legyártásának nettó ára","Ft/db",2.5,2.25,2.3529,2.4,5.3529,2.9711600000000002,1.1935843574712257,1,null,4,1,2,3,6,5,"10.000db prospektus (műnyomó 150g/m2, 99*210mm, 4+4 színnyomás) legyártásának nettó ára"]
[7,null,"100db plakát (műnyomó 250g/m2, 420*594mm, 4+0 színnyomás) legyártásának nettó ára","Ft/db",16,17.2,17.7744,16.7,20.7744,17.68976,1.6490570900972115,1,null,1,3,5,2,6,4,"100db plakát (műnyomó 250g/m2, 420*594mm, 4+0 színnyomás) legyártásának nettó ára"]
[8,null,"500db plakát (műnyomó 250g/m2, 420*594mm, 4+0 színnyomás) legyártásának nettó ára","Ft/db",12.3,12.5,13.754,12.5,16.753999999999998,13.561599999999999,1.6777400990618418,1,null,1,2,5,2,6,4,"500db plakát (műnyomó 250g/m2, 420*594mm, 4+0 színnyomás) legyártásának nettó ára"]
[9,null,"1.000db plakát (műnyomó 250g/m2, 420*594mm, 4+0 színnyomás) legyártásának nettó ára","Ft/db",9,8.9,10.267200000000001,9.8000000000000007,13.267200000000001,10.246880000000001,1.593188187754347,1,null,2,1,5,3,6,4,"1.000db plakát (műnyomó 250g/m2, 420*594mm, 4+0 színnyomás) legyártásának nettó ára"]
[10,null,"500db ajánlati szerződés (idem 56g/m2, 3 példányos, A4, 1+0 színnyomás) legyártásának nettó ára","Ft/db",20,25.45,27.521000000000001,24,29.321000000000002,29.8584,3.7021200016567217,1,null,1,3,4,2,5,6,"500db ajánlati szerződés (idem 56g/m2, 3 példányos, A4, 1+0 színnyomás) legyártásának nettó ára"]
[11,null,"1.000db ajánlati szerződés (idem 56g/m2, 3 példányos, A4, 1+0 színnyomás) legyártásának nettó ára","Ft/db",18.5,24,23.8,21,26.2,25,2.8315484574110186,1,null,1,4,3,2,6,5,"1.000db ajánlati szerződés (idem 56g/m2, 3 példányos, A4, 1+0 színnyomás) legyártásának nettó ára"]
[12,null,"2.000db ajánlati szerződés (idem 56g/m2, 3 példányos, A4, 1+0 színnyomás) legyártásának nettó ára","Ft/db",17,22.55,20.079000000000001,18,23.079000000000001,20.1416,2.4036942068407932,1,null,1,5,3,2,6,4,"2.000db ajánlati szerződés (idem 56g/m2, 3 példányos, A4, 1+0 színnyomás) legyártásának nettó ára"]
[13,null,"500db feltétel füzet (ofszet 80g/m2, A4, 1+1 színnyomás, irkatűzés) legyártásának nettó ára","Ft/oldal",13.3,14.9,14.706200000000001,13.8,17.706200000000003,14.882480000000005,1.5284490261699728,1,null,1,5,3,2,6,4,"500db feltétel füzet (ofszet 80g/m2, A4, 1+1 színnyomás, irkatűzés) legyártásának nettó ára"]
[14,null,"1.000db feltétel füzet (ofszet 80g/m2, A4, 1+1 színnyomás, irkatűzés) legyártásának nettó ára","Ft/oldal",12.7,10,10.908899999999999,10.7,13.908899999999999,11.643559999999999,1.4407741705069612,1,null,5,1,3,2,6,4,"1.000db feltétel füzet (ofszet 80g/m2, A4, 1+1 színnyomás, irkatűzés) legyártásának nettó ára"]
[15,null,"2.000db feltétel füzet (ofszet 80g/m2, A4, 1+1 színnyomás, irkatűzés) legyártásának nettó ára","Ft/oldal",9.1999999999999993,8.75,9.9452000000000016,9.1999999999999993,12.945200000000002,10.008080000000001,1.5178524070541197,1,null,2,1,4,2,6,5,"2.000db feltétel füzet (ofszet 80g/m2, A4, 1+1 színnyomás, irkatűzés) legyártásának nettó ára"]
[16,null,"5.000db bejelentőlap (ofszet 80g/m2, A4, 2+2 színnyomás, perforáció) legyártásának nettó ára","Ft/db",33.6,39.5,30.818000000000001,32.299999999999997,33.817999999999998,34.007199999999997,2.9481515836197749,1,null,3,6,1,2,4,5,"5.000db bejelentőlap (ofszet 80g/m2, A4, 2+2 színnyomás, perforáció) legyártásának nettó ára"]
[17,null,"10.000db bejelentőlap (ofszet 80g/m2, A4, 2+2 színnyomás, perforáció) legyártásának nettó ára","Ft/db",25.8,29.15,24.3675,25.5,27.3675,26.437000000000001,1.6608893701868992,1,null,3,6,1,2,5,4,"10.000db bejelentőlap (ofszet 80g/m2, A4, 2+2 színnyomás, perforáció) legyártásának nettó ára"]
[18,null,"20.000db bejelentőlap (ofszet 80g/m2, A4, 2+2 színnyomás, perforáció) legyártásának nettó ára","Ft/db",18,18.8,17.916999999999998,18.7,20.916999999999998,18.866800000000001,1.0852710997718833,1,null,2,4,1,3,6,5,"20.000db bejelentőlap (ofszet 80g/m2, A4, 2+2 színnyomás, perforáció) legyártásának nettó ára"]
[19,null,"5.000db levélpapír (ofszet 80g/m2, A4 kifutó méret, 2+0 színnyomás) legyártásának nettó ára","Ft/db",12.9,11.9,13.261799999999999,12.7,16.261800000000001,13.404719999999998,1.4965885933014604,1,null,3,1,4,2,6,5,"5.000db levélpapír (ofszet 80g/m2, A4 kifutó méret, 2+0 színnyomás) legyártásának nettó ára"]
[20,null,"10.000db levélpapír (ofszet 80g/m2, A4 kifutó méret, 2+0 színnyomás) legyártásának nettó ára","Ft/db",10.8,10.15,11.2148,10.7,14.2148,11.41592,1.4400438082225104,1,null,3,1,4,2,6,5,"10.000db levélpapír (ofszet 80g/m2, A4 kifutó méret, 2+0 színnyomás) legyártásának nettó ára"]
[21,null,"20.000db levélpapír (ofszet 80g/m2, A4 kifutó méret, 2+0 színnyomás) legyártásának nettó ára","Ft/db",9.6999999999999993,9.6,10.0533,9.6999999999999993,13.0533,10.421319999999998,1.324985212596733,1,null,2,1,4,2,6,5,"20.000db levélpapír (ofszet 80g/m2, A4 kifutó méret, 2+0 színnyomás) legyártásának nettó ára"]
[22,"Határidők","1.000db prospektus (műnyomó 150g/m2, 99*210mm, 4+4 színnyomás) leszállítási határideje","munkanap",3,3,3,3,2,2,0.51639777949432275,1,null,3,3,3,3,1,1,"1.000db prospektus (műnyomó 150g/m2, 99*210mm, 4+4 színnyomás) leszállítási határideje"]
[23,null,"5.000db prospektus (műnyomó 150g/m2, 99*210mm, 4+4 színnyomás) leszállítási határideje","munkanap",4,4,4,4,4,4,0]
[24,null,"10.000db prospektus (műnyomó 150g/m2, 99*210mm, 4+4 színnyomás) leszállítási határideje","munkanap",4,5,4,6,5,5,0.75277265270908222,1,null,{"$f":"RANK(E25,$E25:$J25,$L25)","v":1},{"$f":"RANK(F25,$E25:$J25,$L25)","v":3},{"$f":"RANK(G25,$E25:$J25,$L25)","v":1},{"$f":"RANK(H25,$E25:$J25,$L25)","v":6},{"$f":"RANK(I25,$E25:$J25,$L25)","v":3},{"$f":"RANK(J25,$E25:$J25,$L25)","v":3},{"$f":"C25","v":"10.000db prospektus (műnyomó 150g/m2, 99*210mm, 4+4 színnyomás) leszállítási határideje"}]
[25,null,"100db plakát (műnyomó 250g/m2, 420*594mm, 4+0 színnyomás) leszállítási határideje","munkanap",3,3,3,3,2,2,0.51639777949432275,1,null,3,3,3,3,1,1,"100db plakát (műnyomó 250g/m2, 420*594mm, 4+0 színnyomás) leszállítási határideje"]
[26,null,"500db plakát (műnyomó 250g/m2, 420*594mm, 4+0 színnyomás) leszállítási határideje","munkanap",4,4,4,4,4,4,0]
[27,null,"1.000db plakát (műnyomó 250g/m2, 420*594mm, 4+0 színnyomás) leszállítási határideje","munkanap",5,4,4,6,5,5,0.75277265270908222,1,null,{"$f":"RANK(E28,$E28:$J28,$L28)","v":3},{"$f":"RANK(F28,$E28:$J28,$L28)","v":1},{"$f":"RANK(G28,$E28:$J28,$L28)","v":1},{"$f":"RANK(H28,$E28:$J28,$L28)","v":6},{"$f":"RANK(I28,$E28:$J28,$L28)","v":3},{"$f":"RANK(J28,$E28:$J28,$L28)","v":3},{"$f":"C28","v":"1.000db plakát (műnyomó 250g/m2, 420*594mm, 4+0 színnyomás) leszállítási határideje"}]
[28,null,"500db ajánlati szerződés (idem 56g/m2, 3 példányos, A4, 1+0 színnyomás) leszállítási határideje","munkanap",3,3,3,3,2,2,0.51639777949432275,1,null,3,3,3,3,1,1,"500db ajánlati szerződés (idem 56g/m2, 3 példányos, A4, 1+0 színnyomás) leszállítási határideje"]
[29,null,"1.000db ajánlati szerződés (idem 56g/m2, 3 példányos, A4, 1+0 színnyomás) leszállítási határideje","munkanap",4,4,4,4,4,4,0]
[30,null,"2.000db ajánlati szerződés (idem 56g/m2, 3 példányos, A4, 1+0 színnyomás) leszállítási határideje","munkanap",4,5,4,6,5,5,0.75277265270908222,1,null,{"$f":"RANK(E31,$E31:$J31,$L31)","v":1},3,1,6,3,3,{"$f":"C31","v":"2.000db ajánlati szerződés (idem 56g/m2, 3 példányos, A4, 1+0 színnyomás) leszállítási határideje"}]
[31,null,"500db feltétel füzet (ofszet 80g/m2, A4, 1+1 színnyomás, irkatűzés) legyártása - Ft/oldal","munkanap",4,4,4,4,4,4,0]
[32,null,"1.000db feltétel füzet (ofszet 80g/m2, A4, 1+1 színnyomás, irkatűzés) legyártása - Ft/oldal","munkanap",4,5,4,5,5,5,0.51639777949432408,1,null,{"$f":"RANK(E33,$E33:$J33,$L33)","v":1},{"$f":"RANK(F33,$E33:$J33,$L33)","v":3},{"$f":"RANK(G33,$E33:$J33,$L33)","v":1},{"$f":"RANK(H33,$E33:$J33,$L33)","v":3},{"$f":"RANK(I33,$E33:$J33,$L33)","v":3},{"$f":"RANK(J33,$E33:$J33,$L33)","v":3},{"$f":"C33","v":"1.000db feltétel füzet (ofszet 80g/m2, A4, 1+1 színnyomás, irkatűzés) legyártása - Ft/oldal"}]
[33,null,"2.000db feltétel füzet (ofszet 80g/m2, A4, 1+1 színnyomás, irkatűzés) legyártása - Ft/oldal","munkanap",5,6,5,6,6,6,0.51639777949432408,1,null,1,3,1,3,3,3,"2.000db feltétel füzet (ofszet 80g/m2, A4, 1+1 színnyomás, irkatűzés) legyártása - Ft/oldal"]
[34,null,"5.000db bejelentőlap (ofszet 80g/m2, A4, 2+2 színnyomás, perforáció) leszállítási határideje","munkanap",3,3,3,3,2,2,0.51639777949432275,1,null,3,3,3,3,1,1,"5.000db bejelentőlap (ofszet 80g/m2, A4, 2+2 színnyomás, perforáció) leszállítási határideje"]
[35,null,"10.000db bejelentőlap (ofszet 80g/m2, A4, 2+2 színnyomás, perforáció) leszállítási határideje","munkanap",4,4,4,4,4,4,0]
[36,null,"20.000db bejelentőlap (ofszet 80g/m2, A4, 2+2 színnyomás, perforáció) leszállítási határideje","munkanap",4,5,4,6,5,5,0.75277265270908222,1,null,{"$f":"RANK(E37,$E37:$J37,$L37)","v":1},{"$f":"RANK(F37,$E37:$J37,$L37)","v":3},{"$f":"RANK(G37,$E37:$J37,$L37)","v":1},{"$f":"RANK(H37,$E37:$J37,$L37)","v":6},{"$f":"RANK(I37,$E37:$J37,$L37)","v":3},{"$f":"RANK(J37,$E37:$J37,$L37)","v":3},{"$f":"C37","v":"20.000db bejelentőlap (ofszet 80g/m2, A4, 2+2 színnyomás, perforáció) leszállítási határideje"}]
[37,null,"5.000db levélpapír (ofszet 80g/m2, A4 kifutó méret, 2+0 színnyomás) leszállítási határideje","munkanap",2,2,2,3,2,2,0.40824829046386274,1,null,1,1,1,6,1,1,"5.000db levélpapír (ofszet 80g/m2, A4 kifutó méret, 2+0 színnyomás) leszállítási határideje"]
[38,null,"10.000db levélpapír (ofszet 80g/m2, A4 kifutó méret, 2+0 színnyomás) leszállítási határideje","munkanap",4,4,4,4,4,4,0]
[39,null,"20.000db levélpapír (ofszet 80g/m2, A4 kifutó méret, 2+0 színnyomás) leszállítási határideje","munkanap",4,5,4,6,5,5,0.75277265270908222,1,null,{"$f":"RANK(E40,$E40:$J40,$L40)","v":1},3,1,6,3,3,{"$f":"C40","v":"20.000db levélpapír (ofszet 80g/m2, A4 kifutó méret, 2+0 színnyomás) leszállítási határideje"}]

{"sheet":"Munka4","index":1,"n_rows":5,"n_cols":8,"rows_kept":5,"cut":false,"hidden":false,"merged":[]}
["OAM","Zátony Nyomda","Sziget Nyomda","Hegy Nyomda","Óceán Nyomda","Völgy Nyomda","Sivatag Nyomda","Attribútum"]
[30,3,3,3,3,1,1,"5.000db bejelentőlap (ofszet 80g/m2, A4, 2+2 színnyomás, perforáció) leszállítási határideje"]
[26,3,3,3,3,1,1,"500db ajánlati szerződés (idem 56g/m2, 3 példányos, A4, 1+0 színnyomás) leszállítási határideje"]
[24,3,3,3,3,1,1,"100db plakát (műnyomó 250g/m2, 420*594mm, 4+0 színnyomás) leszállítási határideje"]
[22,3,3,3,3,1,1,"1.000db prospektus (műnyomó 150g/m2, 99*210mm, 4+4 színnyomás) leszállítási határideje"]

{"sheet":"Munka5","index":2,"n_rows":3,"n_cols":8,"rows_kept":3,"cut":false,"hidden":false,"merged":[]}
["OAM","Zátony Nyomda","Sziget Nyomda","Hegy Nyomda","Óceán Nyomda","Völgy Nyomda","Sivatag Nyomda","Attribútum"]
[29,1,3,1,3,3,3,"2.000db feltétel füzet (ofszet 80g/m2, A4, 1+1 színnyomás, irkatűzés) legyártása - Ft/oldal"]
[28,1,3,1,3,3,3,"1.000db feltétel füzet (ofszet 80g/m2, A4, 1+1 színnyomás, irkatűzés) legyártása - Ft/oldal"]

{"sheet":"Munka6","index":3,"n_rows":5,"n_cols":8,"rows_kept":5,"cut":false,"hidden":false,"merged":[]}
["OAM","Zátony Nyomda","Sziget Nyomda","Hegy Nyomda","Óceán Nyomda","Völgy Nyomda","Sivatag Nyomda","Attribútum"]
[33,1,3,1,6,3,3,"20.000db levélpapír (ofszet 80g/m2, A4 kifutó méret, 2+0 színnyomás) leszállítási határideje"]
[31,1,3,1,6,3,3,"20.000db bejelentőlap (ofszet 80g/m2, A4, 2+2 színnyomás, perforáció) leszállítási határideje"]
[27,1,3,1,6,3,3,"2.000db ajánlati szerződés (idem 56g/m2, 3 példányos, A4, 1+0 színnyomás) leszállítási határideje"]
[23,1,3,1,6,3,3,"10.000db prospektus (műnyomó 150g/m2, 99*210mm, 4+4 színnyomás) leszállítási határideje"]

{"sheet":"Munka7","index":4,"n_rows":3,"n_cols":8,"rows_kept":3,"cut":false,"hidden":false,"merged":[]}
["OAM","Zátony Nyomda","Sziget Nyomda","Hegy Nyomda","Óceán Nyomda","Völgy Nyomda","Sivatag Nyomda","Attribútum"]
[13,1,5,3,2,6,4,"500db feltétel füzet (ofszet 80g/m2, A4, 1+1 színnyomás, irkatűzés) legyártásának nettó ára"]
[12,1,5,3,2,6,4,"2.000db ajánlati szerződés (idem 56g/m2, 3 példányos, A4, 1+0 színnyomás) legyártásának nettó ára"]

{"sheet":"Munka8","index":5,"n_rows":3,"n_cols":8,"rows_kept":3,"cut":false,"hidden":false,"merged":[]}
["OAM","Zátony Nyomda","Sziget Nyomda","Hegy Nyomda","Óceán Nyomda","Völgy Nyomda","Sivatag Nyomda","Attribútum"]
[21,2,1,4,2,6,5,"20.000db levélpapír (ofszet 80g/m2, A4 kifutó méret, 2+0 színnyomás) legyártásának nettó ára"]
[15,2,1,4,2,6,5,"2.000db feltétel füzet (ofszet 80g/m2, A4, 1+1 színnyomás, irkatűzés) legyártásának nettó ára"]

{"sheet":"Munka9","index":6,"n_rows":3,"n_cols":8,"rows_kept":3,"cut":false,"hidden":false,"merged":[]}
["OAM","Zátony Nyomda","Sziget Nyomda","Hegy Nyomda","Óceán Nyomda","Völgy Nyomda","Sivatag Nyomda","Attribútum"]
[20,3,1,4,2,6,5,"10.000db levélpapír (ofszet 80g/m2, A4 kifutó méret, 2+0 színnyomás) legyártásának nettó ára"]
[19,3,1,4,2,6,5,"5.000db levélpapír (ofszet 80g/m2, A4 kifutó méret, 2+0 színnyomás) legyártásának nettó ára"]

{"sheet":"ismetlodes","index":7,"n_rows":28,"n_cols":7,"rows_kept":28,"cut":false,"hidden":false,"merged":[]}
[]
[]
["Darab / OAM"]
["Sivatag Nyomda","Zátony Nyomda","Völgy Nyomda","Óceán Nyomda","Hegy Nyomda","Sziget Nyomda","Összesen"]
[1,1,1,6,1,1,1]
[null,3,1,3,3,3,4]
[3,1,3,3,1,3,2]
[null,null,null,6,1,3,4]
[null,3,3,6,1,1,1]
[4,1,6,2,3,5,2]
[null,null,null,null,5,2,1]
[null,null,null,null,null,3,1]
[null,2,6,3,5,1,1]
[null,3,5,2,1,6,1]
[null,5,2,1,3,6,1]
[null,null,6,2,3,1,1]
[5,1,6,2,3,4,1]
[null,2,6,2,4,1,2]
[null,null,null,3,1,4,1]
[null,null,null,4,1,2,1]
[null,3,4,2,1,6,1]
[null,null,6,2,4,1,2]
[null,null,null,4,1,2,1]
[null,4,3,1,2,6,1]
[null,null,6,1,3,2,1]
[null,null,null,3,2,1,1]
[6,1,5,2,4,3,1]
["Végösszeg",null,null,null,null,null,33]

{"sheet":"pivotalap","index":8,"n_rows":71,"n_cols":26,"rows_kept":71,"cut":false,"hidden":false,"merged":[]}
[]
["OAM",{"$f":"alapadatok!N1","v":"Zátony Nyomda"},{"$f":"alapadatok!O1","v":"Sziget Nyomda"},{"$f":"alapadatok!P1","v":"Hegy Nyomda"},{"$f":"alapadatok!Q1","v":"Óceán Nyomda"},{"$f":"alapadatok!R1","v":"Völgy Nyomda"},{"$f":"alapadatok!S1","v":"Sivatag Nyomda"},"Attribútum","surites"]
[1,4,2,3,1,6,5,"Cég tőkeerőssége (saját tőke/forrás)",{"$f":"IF(ISERROR(VLOOKUP(A3,surites!$D$27:$E$42,2,0)),\"i\",VLOOKUP(A3,surites!$D$27:$E$42,2,0))","v":"i"}]
[2,4,6,2,1,3,5,"Cég nettó árbevétele a tavalyi évben",{"$f":"IF(ISERROR(VLOOKUP(A4,surites!$D$27:$E$42,2,0)),\"i\",VLOOKUP(A4,surites!$D$27:$E$42,2,0))","v":"i"}]
[3,5,6,3,1,2,4,"Referenciák száma a tavalyi évben (100.000Ft feletti össz.értékű teljesült szerződések)",{"$f":"IF(ISERROR(VLOOKUP(A5,surites!$D$27:$E$42,2,0)),\"i\",VLOOKUP(A5,surites!$D$27:$E$42,2,0))","v":"i"}]
[4,2,2,1,4,6,5,"1.000db prospektus (műnyomó 150g/m2, 99*210mm, 4+4 színnyomás) legyártásának nettó ára",{"$f":"IF(ISERROR(VLOOKUP(A6,surites!$D$27:$E$42,2,0)),\"i\",VLOOKUP(A6,surites!$D$27:$E$42,2,0))","v":"i"}]
[5,3,2,1,4,6,5,"5.000db prospektus (műnyomó 150g/m2, 99*210mm, 4+4 színnyomás) legyártásának nettó ára",{"$f":"IF(ISERROR(VLOOKUP(A7,surites!$D$27:$E$42,2,0)),\"i\",VLOOKUP(A7,surites!$D$27:$E$42,2,0))","v":"i"}]
[6,4,1,2,3,6,5,"10.000db prospektus (műnyomó 150g/m2, 99*210mm, 4+4 színnyomás) legyártásának nettó ára",{"$f":"IF(ISERROR(VLOOKUP(A8,surites!$D$27:$E$42,2,0)),\"i\",VLOOKUP(A8,surites!$D$27:$E$42,2,0))","v":"i"}]
[7,1,3,5,2,6,4,"100db plakát (műnyomó 250g/m2, 420*594mm, 4+0 színnyomás) legyártásának nettó ára",{"$f":"IF(ISERROR(VLOOKUP(A9,surites!$D$27:$E$42,2,0)),\"i\",VLOOKUP(A9,surites!$D$27:$E$42,2,0))","v":"i"}]
[8,1,2,5,2,6,4,"500db plakát (műnyomó 250g/m2, 420*594mm, 4+0 színnyomás) legyártásának nettó ára",{"$f":"IF(ISERROR(VLOOKUP(A10,surites!$D$27:$E$42,2,0)),\"i\",VLOOKUP(A10,surites!$D$27:$E$42,2,0))","v":"i"}]
[9,2,1,5,3,6,4,"1.000db plakát (műnyomó 250g/m2, 420*594mm, 4+0 színnyomás) legyártásának nettó ára",{"$f":"IF(ISERROR(VLOOKUP(A11,surites!$D$27:$E$42,2,0)),\"i\",VLOOKUP(A11,surites!$D$27:$E$42,2,0))","v":"i"}]
[10,1,3,4,2,5,6,"500db ajánlati szerződés (idem 56g/m2, 3 példányos, A4, 1+0 színnyomás) legyártásának nettó ára",{"$f":"IF(ISERROR(VLOOKUP(A12,surites!$D$27:$E$42,2,0)),\"i\",VLOOKUP(A12,surites!$D$27:$E$42,2,0))","v":"i"}]
[11,1,4,3,2,6,5,"1.000db ajánlati szerződés (idem 56g/m2, 3 példányos, A4, 1+0 színnyomás) legyártásának nettó ára",{"$f":"IF(ISERROR(VLOOKUP(A13,surites!$D$27:$E$42,2,0)),\"i\",VLOOKUP(A13,surites!$D$27:$E$42,2,0))","v":"i"}]
[12,1,5,3,2,6,4,"2.000db ajánlati szerződés (idem 56g/m2, 3 példányos, A4, 1+0 színnyomás) legyártásának nettó ára",{"$f":"IF(ISERROR(VLOOKUP(A14,surites!$D$27:$E$42,2,0)),\"i\",VLOOKUP(A14,surites!$D$27:$E$42,2,0))","v":"n"}]
[13,1,5,3,2,6,4,"500db feltétel füzet (ofszet 80g/m2, A4, 1+1 színnyomás, irkatűzés) legyártásának nettó ára",{"$f":"IF(ISERROR(VLOOKUP(A15,surites!$D$27:$E$42,2,0)),\"i\",VLOOKUP(A15,surites!$D$27:$E$42,2,0))","v":"i"}]
[14,5,1,3,2,6,4,"1.000db feltétel füzet (ofszet 80g/m2, A4, 1+1 színnyomás, irkatűzés) legyártásának nettó ára",{"$f":"IF(ISERROR(VLOOKUP(A16,surites!$D$27:$E$42,2,0)),\"i\",VLOOKUP(A16,surites!$D$27:$E$42,2,0))","v":"i"}]
[15,2,1,4,2,6,5,"2.000db feltétel füzet (ofszet 80g/m2, A4, 1+1 színnyomás, irkatűzés) legyártásának nettó ára",{"$f":"IF(ISERROR(VLOOKUP(A17,surites!$D$27:$E$42,2,0)),\"i\",VLOOKUP(A17,surites!$D$27:$E$42,2,0))","v":"n"}]
[16,3,6,1,2,4,5,"5.000db bejelentőlap (ofszet 80g/m2, A4, 2+2 színnyomás, perforáció) legyártásának nettó ára",{"$f":"IF(ISERROR(VLOOKUP(A18,surites!$D$27:$E$42,2,0)),\"i\",VLOOKUP(A18,surites!$D$27:$E$42,2,0))","v":"i"}]
[17,3,6,1,2,5,4,"10.000db bejelentőlap (ofszet 80g/m2, A4, 2+2 színnyomás, perforáció) legyártásának nettó ára",{"$f":"IF(ISERROR(VLOOKUP(A19,surites!$D$27:$E$42,2,0)),\"i\",VLOOKUP(A19,surites!$D$27:$E$42,2,0))","v":"i"}]
[18,2,4,1,3,6,5,"20.000db bejelentőlap (ofszet 80g/m2, A4, 2+2 színnyomás, perforáció) legyártásának nettó ára",{"$f":"IF(ISERROR(VLOOKUP(A20,surites!$D$27:$E$42,2,0)),\"i\",VLOOKUP(A20,surites!$D$27:$E$42,2,0))","v":"i"}]
[19,3,1,4,2,6,5,"5.000db levélpapír (ofszet 80g/m2, A4 kifutó méret, 2+0 színnyomás) legyártásának nettó ára",{"$f":"IF(ISERROR(VLOOKUP(A21,surites!$D$27:$E$42,2,0)),\"i\",VLOOKUP(A21,surites!$D$27:$E$42,2,0))","v":"n"}]
[20,3,1,4,2,6,5,"10.000db levélpapír (ofszet 80g/m2, A4 kifutó méret, 2+0 színnyomás) legyártásának nettó ára",{"$f":"IF(ISERROR(VLOOKUP(A22,surites!$D$27:$E$42,2,0)),\"i\",VLOOKUP(A22,surites!$D$27:$E$42,2,0))","v":"i"}]
[21,2,1,4,2,6,5,"20.000db levélpapír (ofszet 80g/m2, A4 kifutó méret, 2+0 színnyomás) legyártásának nettó ára",{"$f":"IF(ISERROR(VLOOKUP(A23,surites!$D$27:$E$42,2,0)),\"i\",VLOOKUP(A23,surites!$D$27:$E$42,2,0))","v":"i"}]
[22,3,3,3,3,1,1,"1.000db prospektus (műnyomó 150g/m2, 99*210mm, 4+4 színnyomás) leszállítási határideje",{"$f":"IF(ISERROR(VLOOKUP(A24,surites!$D$27:$E$42,2,0)),\"i\",VLOOKUP(A24,surites!$D$27:$E$42,2,0))","v":"n"}]
[23,1,3,1,6,3,3,"10.000db prospektus (műnyomó 150g/m2, 99*210mm, 4+4 színnyomás) leszállítási határideje",{"$f":"IF(ISERROR(VLOOKUP(A25,surites!$D$27:$E$42,2,0)),\"i\",VLOOKUP(A25,surites!$D$27:$E$42,2,0))","v":"n"}]
[24,3,3,3,3,1,1,"100db plakát (műnyomó 250g/m2, 420*594mm, 4+0 színnyomás) leszállítási határideje",{"$f":"IF(ISERROR(VLOOKUP(A26,surites!$D$27:$E$42,2,0)),\"i\",VLOOKUP(A26,surites!$D$27:$E$42,2,0))","v":"n"}]
[25,3,1,1,6,3,3,"1.000db plakát (műnyomó 250g/m2, 420*594mm, 4+0 színnyomás) leszállítási határideje",{"$f":"IF(ISERROR(VLOOKUP(A27,surites!$D$27:$E$42,2,0)),\"i\",VLOOKUP(A27,surites!$D$27:$E$42,2,0))","v":"i"}]
[26,3,3,3,3,1,1,"500db ajánlati szerződés (idem 56g/m2, 3 példányos, A4, 1+0 színnyomás) leszállítási határideje",{"$f":"IF(ISERROR(VLOOKUP(A28,surites!$D$27:$E$42,2,0)),\"i\",VLOOKUP(A28,surites!$D$27:$E$42,2,0))","v":"n"}]
[27,1,3,1,6,3,3,"2.000db ajánlati szerződés (idem 56g/m2, 3 példányos, A4, 1+0 színnyomás) leszállítási határideje",{"$f":"IF(ISERROR(VLOOKUP(A29,surites!$D$27:$E$42,2,0)),\"i\",VLOOKUP(A29,surites!$D$27:$E$42,2,0))","v":"n"}]
[28,1,3,1,3,3,3,"1.000db feltétel füzet (ofszet 80g/m2, A4, 1+1 színnyomás, irkatűzés) legyártása - Ft/oldal",{"$f":"IF(ISERROR(VLOOKUP(A30,surites!$D$27:$E$42,2,0)),\"i\",VLOOKUP(A30,surites!$D$27:$E$42,2,0))","v":"n"}]
[29,1,3,1,3,3,3,"2.000db feltétel füzet (ofszet 80g/m2, A4, 1+1 színnyomás, irkatűzés) legyártása - Ft/oldal",{"$f":"IF(ISERROR(VLOOKUP(A31,surites!$D$27:$E$42,2,0)),\"i\",VLOOKUP(A31,surites!$D$27:$E$42,2,0))","v":"i"}]
[30,3,3,3,3,1,1,"5.000db bejelentőlap (ofszet 80g/m2, A4, 2+2 színnyomás, perforáció) leszállítási határideje",{"$f":"IF(ISERROR(VLOOKUP(A32,surites!$D$27:$E$42,2,0)),\"i\",VLOOKUP(A32,surites!$D$27:$E$42,2,0))","v":"i"}]
[31,1,3,1,6,3,3,"20.000db bejelentőlap (ofszet 80g/m2, A4, 2+2 színnyomás, perforáció) leszállítási határideje",{"$f":"IF(ISERROR(VLOOKUP(A33,surites!$D$27:$E$42,2,0)),\"i\",VLOOKUP(A33,surites!$D$27:$E$42,2,0))","v":"n"}]
[32,1,1,1,6,1,1,"5.000db levélpapír (ofszet 80g/m2, A4 kifutó méret, 2+0 színnyomás) leszállítási határideje",{"$f":"IF(ISERROR(VLOOKUP(A34,surites!$D$27:$E$42,2,0)),\"i\",VLOOKUP(A34,surites!$D$27:$E$42,2,0))","v":"i"}]
[33,1,3,1,6,3,3,"20.000db levélpapír (ofszet 80g/m2, A4 kifutó méret, 2+0 színnyomás) leszállítási határideje",{"$f":"IF(ISERROR(VLOOKUP(A35,surites!$D$27:$E$42,2,0)),\"i\",VLOOKUP(A35,surites!$D$27:$E$42,2,0))","v":"i"}]
[]
[]
[null,{"$f":"B2","v":"Zátony Nyomda"},{"$f":"C2","v":"Sziget Nyomda"},"Hegy Nyomda","Óceán Nyomda","Völgy Nyomda","Sivatag Nyomda","OAM"]
[null,4,2,3,1,6,5,"Cég tőkeerőssége (saját tőke/forrás)"]
[null,4,6,2,1,3,5,"Cég nettó árbevétele a tavalyi évben"]
[null,5,6,3,1,2,4,"Referenciák száma a tavalyi évben (100.000Ft feletti össz.értékű teljesült szerződések)"]
[null,2,2,1,4,6,5,"1.000db prospektus (műnyomó 150g/m2, 99*210mm, 4+4 színnyomás) legyártásának nettó ára"]
[null,3,2,1,4,6,5,"5.000db prospektus (műnyomó 150g/m2, 99*210mm, 4+4 színnyomás) legyártásának nettó ára"]
[null,4,1,2,3,6,5,"10.000db prospektus (műnyomó 150g/m2, 99*210mm, 4+4 színnyomás) legyártásának nettó ára"]
[null,1,3,5,2,6,4,"100db plakát (műnyomó 250g/m2, 420*594mm, 4+0 színnyomás) legyártásának nettó ára"]
[null,1,2,5,2,6,4,"500db plakát (műnyomó 250g/m2, 420*594mm, 4+0 színnyomás) legyártásának nettó ára"]
[null,2,1,5,3,6,4,"1.000db plakát (műnyomó 250g/m2, 420*594mm, 4+0 színnyomás) legyártásának nettó ára"]
[null,1,3,4,2,5,6,"500db ajánlati szerződés (idem 56g/m2, 3 példányos, A4, 1+0 színnyomás) legyártásának nettó ára"]
[null,1,4,3,2,6,5,"1.000db ajánlati szerződés (idem 56g/m2, 3 példányos, A4, 1+0 színnyomás) legyártásának nettó ára"]
[null,1,5,3,2,6,4,"500db feltétel füzet (ofszet 80g/m2, A4, 1+1 színnyomás, irkatűzés) legyártásának nettó ára"]
[null,5,1,3,2,6,4,"1.000db feltétel füzet (ofszet 80g/m2, A4, 1+1 színnyomás, irkatűzés) legyártásának nettó ára"]
[null,3,6,1,2,4,5,"5.000db bejelentőlap (ofszet 80g/m2, A4, 2+2 színnyomás, perforáció) legyártásának nettó ára"]
[null,3,6,1,2,5,4,"10.000db bejelentőlap (ofszet 80g/m2, A4, 2+2 színnyomás, perforáció) legyártásának nettó ára"]
[null,2,4,1,3,6,5,"20.000db bejelentőlap (ofszet 80g/m2, A4, 2+2 színnyomás, perforáció) legyártásának nettó ára"]
[null,3,1,4,2,6,5,"10.000db levélpapír (ofszet 80g/m2, A4 kifutó méret, 2+0 színnyomás) legyártásának nettó ára"]
[null,2,1,4,2,6,5,"20.000db levélpapír (ofszet 80g/m2, A4 kifutó méret, 2+0 színnyomás) legyártásának nettó ára"]
[null,3,1,1,6,3,3,"1.000db plakát (műnyomó 250g/m2, 420*594mm, 4+0 színnyomás) leszállítási határideje"]
[null,1,3,1,3,3,3,"2.000db feltétel füzet (ofszet 80g/m2, A4, 1+1 színnyomás, irkatűzés) legyártása - Ft/oldal"]
[null,3,3,3,3,1,1,"5.000db bejelentőlap (ofszet 80g/m2, A4, 2+2 színnyomás, perforáció) leszállítási határideje"]
[null,1,1,1,6,1,1,"5.000db levélpapír (ofszet 80g/m2, A4 kifutó méret, 2+0 színnyomás) leszállítási határideje"]
[null,1,3,1,6,3,3,"20.000db levélpapír (ofszet 80g/m2, A4 kifutó méret, 2+0 színnyomás) leszállítási határideje"]
[]
[]
[null,"OAM","Cég tőkeerőssége (saját tőke/forrás)","Cég nettó árbevétele a tavalyi évben","Referenciák száma a tavalyi évben (100.000Ft feletti össz.értékű teljesült szerződések)","1.000db prospektus (műnyomó 150g/m2, 99*210mm, 4+4 színnyomás) legyártásának nettó ára","5.000db prospektus (műnyomó 150g/m2, 99*210mm, 4+4 színnyomás) legyártásának nettó ára","10.000db prospektus (műnyomó 150g/m2, 99*210mm, 4+4 színnyomás) legyártásának nettó ára","100db plakát (műnyomó 250g/m2, 420*594mm, 4+0 színnyomás) legyártásának nettó ára","500db plakát (műnyomó 250g/m2, 420*594mm, 4+0 színnyomás) legyártásának nettó ára","1.000db plakát (műnyomó 250g/m2, 420*594mm, 4+0 színnyomás) legyártásának nettó ára","500db ajánlati szerződés (idem 56g/m2, 3 példányos, A4, 1+0 színnyomás) legyártásának nettó ára","1.000db ajánlati szerződés (idem 56g/m2, 3 példányos, A4, 1+0 színnyomás) legyártásának nettó ára","500db feltétel füzet (ofszet 80g/m2, A4, 1+1 színnyomás, irkatűzés) legyártásának nettó ára","1.000db feltétel füzet (ofszet 80g/m2, A4, 1+1 színnyomás, irkatűzés) legyártásának nettó ára","5.000db bejelentőlap (ofszet 80g/m2, A4, 2+2 színnyomás, perforáció) legyártásának nettó ára","10.000db bejelentőlap (ofszet 80g/m2, A4, 2+2 színnyomás, perforáció) legyártásának nettó ára","20.000db bejelentőlap (ofszet 80g/m2, A4, 2+2 színnyomás, perforáció) legyártásának nettó ára","10.000db levélpapír (ofszet 80g/m2, A4 kifutó méret, 2+0 színnyomás) legyártásának nettó ára","20.000db levélpapír (ofszet 80g/m2, A4 kifutó méret, 2+0 színnyomás) legyártásának nettó ára","1.000db plakát (műnyomó 250g/m2, 420*594mm, 4+0 színnyomás) leszállítási határideje","2.000db feltétel füzet (ofszet 80g/m2, A4, 1+1 színnyomás, irkatűzés) legyártása - Ft/oldal","5.000db bejelentőlap (ofszet 80g/m2, A4, 2+2 színnyomás, perforáció) leszállítási határideje","5.000db levélpapír (ofszet 80g/m2, A4 kifutó méret, 2+0 színnyomás) leszállítási határideje","20.000db levélpapír (ofszet 80g/m2, A4 kifutó méret, 2+0 színnyomás) leszállítási határideje","Y0"]
[null,"Zátony Nyomda",4,4,5,2,3,4,1,1,2,1,1,1,5,3,3,2,3,2,3,1,3,1,1,1000]
[null,"Sziget Nyomda",2,6,6,2,2,1,3,2,1,3,4,5,1,6,6,4,1,1,1,3,3,1,3,1000]
[null,"Hegy Nyomda",3,2,3,1,1,2,5,5,5,4,3,3,3,1,1,1,4,4,1,1,3,1,1,1000]
[null,"Óceán Nyomda",1,1,1,4,4,3,2,2,3,2,2,2,2,2,2,3,2,2,6,3,3,6,6,1000]
[null,"Völgy Nyomda",6,3,2,6,6,6,6,6,6,5,6,6,6,4,5,6,6,6,3,3,1,1,3,1000]
[null,"Sivatag Nyomda",5,5,4,5,5,5,4,4,4,6,5,4,4,5,4,5,5,5,3,3,1,1,3,1000]
[null,"1 futtatás",5,5,931,5,5,934,923,5,5,5,5,5,5,12,5,5,5,5,5,5,49,5,5]

{"sheet":"surites","index":9,"n_rows":42,"n_cols":10,"rows_kept":42,"cut":false,"hidden":false,"merged":[]}
["OAM","Zátony Nyomda","Sziget Nyomda","Hegy Nyomda","Óceán Nyomda","Völgy Nyomda","Sivatag Nyomda","Attribútum","kell","Oszlop1"]
[30,3,3,3,3,1,1,"5.000db bejelentőlap (ofszet 80g/m2, A4, 2+2 színnyomás, perforáció) leszállítási határideje","i",{"$f":"Táblázat18[[#This Row],[Attribútum]]&H3&H4&H5","v":"5.000db bejelentőlap (ofszet 80g/m2, A4, 2+2 színnyomás, perforáció) leszállítási határideje500db ajánlati szerződés (idem 56g/m2, 3 példányos, A4, 1+0 színnyomás) leszállítási határideje100db plakát (műnyomó 250g/m2, 420*594mm, 4+0 színnyomás) leszállítási határideje1.000db prospektus (műnyomó 150g/m2, 99*210mm, 4+4 színnyomás) leszállítási határideje"}]
[26,3,3,3,3,1,1,"500db ajánlati szerződés (idem 56g/m2, 3 példányos, A4, 1+0 színnyomás) leszállítási határideje","n",{"$f":"Táblázat18[[#This Row],[Attribútum]]&H4&H5&H6","v":"500db ajánlati szerződés (idem 56g/m2, 3 példányos, A4, 1+0 színnyomás) leszállítási határideje100db plakát (műnyomó 250g/m2, 420*594mm, 4+0 színnyomás) leszállítási határideje1.000db prospektus (műnyomó 150g/m2, 99*210mm, 4+4 színnyomás) leszállítási határidejeAttribútum"}]
[24,3,3,3,3,1,1,"100db plakát (műnyomó 250g/m2, 420*594mm, 4+0 színnyomás) leszállítási határideje","n",{"$f":"Táblázat18[[#This Row],[Attribútum]]&H5&H6&H7","v":"100db plakát (műnyomó 250g/m2, 420*594mm, 4+0 színnyomás) leszállítási határideje1.000db prospektus (műnyomó 150g/m2, 99*210mm, 4+4 színnyomás) leszállítási határidejeAttribútum2.000db feltétel füzet (ofszet 80g/m2, A4, 1+1 színnyomás, irkatűzés) legyártása - Ft/oldal"}]
[22,3,3,3,3,1,1,"1.000db prospektus (műnyomó 150g/m2, 99*210mm, 4+4 színnyomás) leszállítási határideje","n",{"$f":"Táblázat18[[#This Row],[Attribútum]]&H6&H7&H8","v":"1.000db prospektus (műnyomó 150g/m2, 99*210mm, 4+4 színnyomás) leszállítási határidejeAttribútum2.000db feltétel füzet (ofszet 80g/m2, A4, 1+1 színnyomás, irkatűzés) legyártása - Ft/oldal1.000db feltétel füzet (ofszet 80g/m2, A4, 1+1 színnyomás, irkatűzés) legyártása - Ft/oldal"}]
["OAM","Zátony Nyomda","Sziget Nyomda","Hegy Nyomda","Óceán Nyomda","Völgy Nyomda","Sivatag Nyomda","Attribútum","n","Oszlop1"]
[29,1,3,1,3,3,3,"2.000db feltétel füzet (ofszet 80g/m2, A4, 1+1 színnyomás, irkatűzés) legyártása - Ft/oldal","i",{"$f":"Táblázat29[[#This Row],[Attribútum]]&H8","v":"2.000db feltétel füzet (ofszet 80g/m2, A4, 1+1 színnyomás, irkatűzés) legyártása - Ft/oldal1.000db feltétel füzet (ofszet 80g/m2, A4, 1+1 színnyomás, irkatűzés) legyártása - Ft/oldal"}]
[28,1,3,1,3,3,3,"1.000db feltétel füzet (ofszet 80g/m2, A4, 1+1 színnyomás, irkatűzés) legyártása - Ft/oldal","n",{"$f":"Táblázat29[[#This Row],[Attribútum]]&H9","v":"1.000db feltétel füzet (ofszet 80g/m2, A4, 1+1 színnyomás, irkatűzés) legyártása - Ft/oldalAttribútum"}]
["OAM","Zátony Nyomda","Sziget Nyomda","Hegy Nyomda","Óceán Nyomda","Völgy Nyomda","Sivatag Nyomda","Attribútum","n","Oszlop1"]
[33,1,3,1,6,3,3,"20.000db levélpapír (ofszet 80g/m2, A4 kifutó méret, 2+0 színnyomás) leszállítási határideje","i",{"$f":"Táblázat310[[#This Row],[Attribútum]]&H11&H12&H13","v":"20.000db levélpapír (ofszet 80g/m2, A4 kifutó méret, 2+0 színnyomás) leszállítási határideje20.000db bejelentőlap (ofszet 80g/m2, A4, 2+2 színnyomás, perforáció) leszállítási határideje2.000db ajánlati szerződés (idem 56g/m2, 3 példányos, A4, 1+0 színnyomás) leszállítási határideje10.000db prospektus (műnyomó 150g/m2, 99*210mm, 4+4 színnyomás) leszállítási határideje"}]
[31,1,3,1,6,3,3,"20.000db bejelentőlap (ofszet 80g/m2, A4, 2+2 színnyomás, perforáció) leszállítási határideje","n",{"$f":"Táblázat310[[#This Row],[Attribútum]]&H12&H13&H14","v":"20.000db bejelentőlap (ofszet 80g/m2, A4, 2+2 színnyomás, perforáció) leszállítási határideje2.000db ajánlati szerződés (idem 56g/m2, 3 példányos, A4, 1+0 színnyomás) leszállítási határideje10.000db prospektus (műnyomó 150g/m2, 99*210mm, 4+4 színnyomás) leszállítási határidejeAttribútum"}]
[27,1,3,1,6,3,3,"2.000db ajánlati szerződés (idem 56g/m2, 3 példányos, A4, 1+0 színnyomás) leszállítási határideje","n",{"$f":"Táblázat310[[#This Row],[Attribútum]]&H13&H14&H15","v":"2.000db ajánlati szerződés (idem 56g/m2, 3 példányos, A4, 1+0 színnyomás) leszállítási határideje10.000db prospektus (műnyomó 150g/m2, 99*210mm, 4+4 színnyomás) leszállítási határidejeAttribútum500db feltétel füzet (ofszet 80g/m2, A4, 1+1 színnyomás, irkatűzés) legyártásának nettó ára"}]
[23,1,3,1,6,3,3,"10.000db prospektus (műnyomó 150g/m2, 99*210mm, 4+4 színnyomás) leszállítási határideje","n",{"$f":"Táblázat310[[#This Row],[Attribútum]]&H14&H15&H16","v":"10.000db prospektus (műnyomó 150g/m2, 99*210mm, 4+4 színnyomás) leszállítási határidejeAttribútum500db feltétel füzet (ofszet 80g/m2, A4, 1+1 színnyomás, irkatűzés) legyártásának nettó ára2.000db ajánlati szerződés (idem 56g/m2, 3 példányos, A4, 1+0 színnyomás) legyártásának nettó ára"}]
["OAM","Zátony Nyomda","Sziget Nyomda","Hegy Nyomda","Óceán Nyomda","Völgy Nyomda","Sivatag Nyomda","Attribútum","n","Oszlop1"]
[13,1,5,3,2,6,4,"500db feltétel füzet (ofszet 80g/m2, A4, 1+1 színnyomás, irkatűzés) legyártásának nettó ára","i",{"$f":"Táblázat411[[#This Row],[Attribútum]]&H16","v":"500db feltétel füzet (ofszet 80g/m2, A4, 1+1 színnyomás, irkatűzés) legyártásának nettó ára2.000db ajánlati szerződés (idem 56g/m2, 3 példányos, A4, 1+0 színnyomás) legyártásának nettó ára"}]
[12,1,5,3,2,6,4,"2.000db ajánlati szerződés (idem 56g/m2, 3 példányos, A4, 1+0 színnyomás) legyártásának nettó ára","n",{"$f":"Táblázat411[[#This Row],[Attribútum]]&H17","v":"2.000db ajánlati szerződés (idem 56g/m2, 3 példányos, A4, 1+0 színnyomás) legyártásának nettó áraAttribútum"}]
["OAM","Zátony Nyomda","Sziget Nyomda","Hegy Nyomda","Óceán Nyomda","Völgy Nyomda","Sivatag Nyomda","Attribútum","n","Oszlop1"]
[21,2,1,4,2,6,5,"20.000db levélpapír (ofszet 80g/m2, A4 kifutó méret, 2+0 színnyomás) legyártásának nettó ára","i",{"$f":"Táblázat512[[#This Row],[Attribútum]]&H19","v":"20.000db levélpapír (ofszet 80g/m2, A4 kifutó méret, 2+0 színnyomás) legyártásának nettó ára2.000db feltétel füzet (ofszet 80g/m2, A4, 1+1 színnyomás, irkatűzés) legyártásának nettó ára"}]
[15,2,1,4,2,6,5,"2.000db feltétel füzet (ofszet 80g/m2, A4, 1+1 színnyomás, irkatűzés) legyártásának nettó ára","n",{"$f":"Táblázat512[[#This Row],[Attribútum]]&H20","v":"2.000db feltétel füzet (ofszet 80g/m2, A4, 1+1 színnyomás, irkatűzés) legyártásának nettó áraAttribútum"}]
["OAM","Zátony Nyomda","Sziget Nyomda","Hegy Nyomda","Óceán Nyomda","Völgy Nyomda","Sivatag Nyomda","Attribútum","n","Oszlop1"]
[20,3,1,4,2,6,5,"10.000db levélpapír (ofszet 80g/m2, A4 kifutó méret, 2+0 színnyomás) legyártásának nettó ára","i",{"$f":"Táblázat613[[#This Row],[Attribútum]]&H22","v":"10.000db levélpapír (ofszet 80g/m2, A4 kifutó méret, 2+0 színnyomás) legyártásának nettó ára5.000db levélpapír (ofszet 80g/m2, A4 kifutó méret, 2+0 színnyomás) legyártásának nettó ára"}]
[19,3,1,4,2,6,5,"5.000db levélpapír (ofszet 80g/m2, A4 kifutó méret, 2+0 színnyomás) legyártásának nettó ára","n",{"$f":"Táblázat613[[#This Row],[Attribútum]]&H23","v":"5.000db levélpapír (ofszet 80g/m2, A4 kifutó méret, 2+0 színnyomás) legyártásának nettó ára"}]
[]
[]
[]
[]
[null,null,null,12,"n"]
[null,null,null,13,"i"]
[null,null,null,15,"n"]
[null,null,null,19,"n"]
[null,null,null,20,"i"]
[null,null,null,21,"i"]
[null,null,null,22,"n"]
[null,null,null,23,"n"]
[null,null,null,24,"n"]
[null,null,null,26,"n"]
[null,null,null,27,"n"]
[null,null,null,28,"n"]
[null,null,null,29,"i"]
[null,null,null,30,"i"]
[null,null,null,31,"n"]
[null,null,null,33,"i"]

{"sheet":"reszeredmeny","index":10,"n_rows":38,"n_cols":28,"rows_kept":38,"cut":false,"hidden":false,"merged":[]}
["Azonosító","Teszt"]
["Objektumok",6]
["Attribútumok",23]
["Lepcsők",6]
["Eltolás",0]
["Leírás","COCO Y0: Teszt"]
[]
["Rangsor","X(A1)","X(A2)","X(A3)","X(A4)","X(A5)","X(A6)","X(A7)","X(A8)","X(A9)","X(A10)","X(A11)","X(A12)","X(A13)","X(A14)","X(A15)","X(A16)","X(A17)","X(A18)","X(A19)","X(A20)","X(A21)","X(A22)","X(A23)","Y(A24)"]
["O1",4,4,5,2,3,4,1,1,2,1,1,1,5,3,3,2,3,2,3,1,3,1,1,1000]
["O2",2,6,6,2,2,1,3,2,1,3,4,5,1,6,6,4,1,1,1,3,3,1,3,1000]
["O3",3,2,3,1,1,2,5,5,5,4,3,3,3,1,1,1,4,4,1,1,3,1,1,1000]
["O4",1,1,1,4,4,3,2,2,3,2,2,2,2,2,2,3,2,2,6,3,3,6,6,1000]
["O5",6,3,2,6,6,6,6,6,6,5,6,6,6,4,5,6,6,6,3,3,1,1,3,1000]
["O6",5,5,4,5,5,5,4,4,4,6,5,4,4,5,4,5,5,5,3,3,1,1,3,1000]
[]
["Lépcsők(1)","X(A1)","X(A2)","X(A3)","X(A4)","X(A5)","X(A6)","X(A7)","X(A8)","X(A9)","X(A10)","X(A11)","X(A12)","X(A13)","X(A14)","X(A15)","X(A16)","X(A17)","X(A18)","X(A19)","X(A20)","X(A21)","X(A22)","X(A23)"]
["S1","(0+5)/(1)=5","(0+5)/(1)=5","(0+931)/(1)=931","(0+5)/(1)=5","(0+5)/(1)=5","(0+934)/(1)=934","(0+923)/(1)=923","(0+5)/(1)=5","(0+5)/(1)=5","(0+5)/(1)=5","(0+5)/(1)=5","(0+5)/(1)=5","(0+5)/(1)=5","(0+12)/(1)=12","(0+5)/(1)=5","(0+5)/(1)=5","(0+5)/(1)=5","(0+5)/(1)=5","(0+5)/(1)=5","(0+5)/(1)=5","(0+49)/(1)=49","(0+5)/(1)=5","(0+5)/(1)=5"]
["S2","(0+4)/(1)=4","(0+4)/(1)=4","(0+930)/(1)=930","(0+4)/(1)=4","(0+4)/(1)=4","(0+4)/(1)=4","(0+4)/(1)=4","(0+4)/(1)=4","(0+4)/(1)=4","(0+4)/(1)=4","(0+4)/(1)=4","(0+4)/(1)=4","(0+4)/(1)=4","(0+4)/(1)=4","(0+4)/(1)=4","(0+4)/(1)=4","(0+4)/(1)=4","(0+4)/(1)=4","(0+4)/(1)=4","(0+4)/(1)=4","(0+4)/(1)=4","(0+4)/(1)=4","(0+4)/(1)=4"]
["S3","(0+3)/(1)=3","(0+3)/(1)=3","(0+916)/(1)=916","(0+3)/(1)=3","(0+3)/(1)=3","(0+3)/(1)=3","(0+3)/(1)=3","(0+3)/(1)=3","(0+3)/(1)=3","(0+3)/(1)=3","(0+3)/(1)=3","(0+3)/(1)=3","(0+3)/(1)=3","(0+3)/(1)=3","(0+3)/(1)=3","(0+3)/(1)=3","(0+3)/(1)=3","(0+3)/(1)=3","(0+3)/(1)=3","(0+3)/(1)=3","(0+3)/(1)=3","(0+3)/(1)=3","(0+3)/(1)=3"]
["S4","(0+2)/(1)=2","(0+2)/(1)=2","(0+915)/(1)=915","(0+2)/(1)=2","(0+2)/(1)=2","(0+2)/(1)=2","(0+2)/(1)=2","(0+2)/(1)=2","(0+2)/(1)=2","(0+2)/(1)=2","(0+2)/(1)=2","(0+2)/(1)=2","(0+2)/(1)=2","(0+2)/(1)=2","(0+2)/(1)=2","(0+2)/(1)=2","(0+2)/(1)=2","(0+2)/(1)=2","(0+2)/(1)=2","(0+2)/(1)=2","(0+2)/(1)=2","(0+2)/(1)=2","(0+2)/(1)=2"]
["S5","(0+1)/(1)=1","(0+1)/(1)=1","(0+1)/(1)=1","(0+1)/(1)=1","(0+1)/(1)=1","(0+1)/(1)=1","(0+1)/(1)=1","(0+1)/(1)=1","(0+1)/(1)=1","(0+1)/(1)=1","(0+1)/(1)=1","(0+1)/(1)=1","(0+1)/(1)=1","(0+1)/(1)=1","(0+1)/(1)=1","(0+1)/(1)=1","(0+1)/(1)=1","(0+1)/(1)=1","(0+1)/(1)=1","(0+1)/(1)=1","(0+1)/(1)=1","(0+1)/(1)=1","(0+1)/(1)=1"]
["S6","(0+0)/(1)=0","(0+0)/(1)=0","(0+0)/(1)=0","(0+0)/(1)=0","(0+0)/(1)=0","(0+0)/(1)=0","(0+0)/(1)=0","(0+0)/(1)=0","(0+0)/(1)=0","(0+0)/(1)=0","(0+0)/(1)=0","(0+0)/(1)=0","(0+0)/(1)=0","(0+0)/(1)=0","(0+0)/(1)=0","(0+0)/(1)=0","(0+0)/(1)=0","(0+0)/(1)=0","(0+0)/(1)=0","(0+0)/(1)=0","(0+0)/(1)=0","(0+0)/(1)=0","(0+0)/(1)=0"]
[]
["Lépcsők(1)","X(A1)","X(A2)","X(A3)","X(A4)","X(A5)","X(A6)","X(A7)","X(A8)","X(A9)","X(A10)","X(A11)","X(A12)","X(A13)","X(A14)","X(A15)","X(A16)","X(A17)","X(A18)","X(A19)","X(A20)","X(A21)","X(A22)","X(A23)"]
["S1",5,5,931,5,5,934,923,5,5,5,5,5,5,12,5,5,5,5,5,5,49,5,5]
["S2",4,4,930,4,4,4,4,4,4,4,4,4,4,4,4,4,4,4,4,4,4,4,4]
["S3",3,3,916,3,3,3,3,3,3,3,3,3,3,3,3,3,3,3,3,3,3,3,3]
["S4",2,2,915,2,2,2,2,2,2,2,2,2,2,2,2,2,2,2,2,2,2,2,2]
["S5",1,1,1,1,1,1,1,1,1,1,1,1,1,1,1,1,1,1,1,1,1,1,1]
["S6",0,0,0,0,0,0,0,0,0,0,0,0,0,0,0,0,0,0,0,0,0,0,0]
[]
["COCO:Y0","X(A1)","X(A2)","X(A3)","X(A4)","X(A5)","X(A6)","X(A7)","X(A8)","X(A9)","X(A10)","X(A11)","X(A12)","X(A13)","X(A14)","X(A15)","X(A16)","X(A17)","X(A18)","X(A19)","X(A20)","X(A21)","X(A22)","X(A23)","Y(*)(A24)","Y","Y-Y(*)","(Y-Y(*))/Y"]
["O1",2,2,1,4,3,2,923,5,4,5,5,5,1,3,3,4,3,4,3,5,3,5,5,1000,1000,0,0]
["O2",4,0,0,4,4,934,3,4,5,3,2,1,5,0,0,2,5,5,5,3,3,5,3,1000,1000,0,0]
["O3",3,4,916,5,5,4,1,1,1,2,3,3,3,12,5,5,2,2,5,5,3,5,5,1000,1000,0,0]
["O4",5,5,931,2,2,3,4,4,3,4,4,4,4,4,4,3,4,4,0,3,3,0,0,1000,1000,0,0]
["O5",0,3,930,0,0,0,0,0,0,1,0,0,0,2,1,0,0,0,3,3,49,5,3,1000,1000,0,0]
["O6",1,1,915,1,1,1,2,2,2,0,1,2,2,1,2,1,1,1,3,3,49,5,3,1000,1000,0,0]

{"sheet":"2. futtatas","index":11,"n_rows":56,"n_cols":21,"rows_kept":56,"cut":false,"hidden":false,"merged":[]}
["OAM","Zátony Nyomda","Sziget Nyomda","Hegy Nyomda","Óceán Nyomda","Völgy Nyomda","Sivatag Nyomda","1 futtatás"]
["Cég tőkeerőssége (saját tőke/forrás)",4,2,3,1,6,5,5]
["Cég nettó árbevétele a tavalyi évben",4,6,2,1,3,5,5]
["Referenciák száma a tavalyi évben (100.000Ft feletti össz.értékű teljesült szerződések)",5,6,3,1,2,4,931]
["1.000db prospektus (műnyomó 150g/m2, 99*210mm, 4+4 színnyomás) legyártásának nettó ára",2,2,1,4,6,5,5]
["5.000db prospektus (műnyomó 150g/m2, 99*210mm, 4+4 színnyomás) legyártásának nettó ára",3,2,1,4,6,5,5]
["10.000db prospektus (műnyomó 150g/m2, 99*210mm, 4+4 színnyomás) legyártásának nettó ára",4,1,2,3,6,5,934]
["100db plakát (műnyomó 250g/m2, 420*594mm, 4+0 színnyomás) legyártásának nettó ára",1,3,5,2,6,4,923]
["500db plakát (műnyomó 250g/m2, 420*594mm, 4+0 színnyomás) legyártásának nettó ára",1,2,5,2,6,4,5]
["1.000db plakát (műnyomó 250g/m2, 420*594mm, 4+0 színnyomás) legyártásának nettó ára",2,1,5,3,6,4,5]
["500db ajánlati szerződés (idem 56g/m2, 3 példányos, A4, 1+0 színnyomás) legyártásának nettó ára",1,3,4,2,5,6,5]
["1.000db ajánlati szerződés (idem 56g/m2, 3 példányos, A4, 1+0 színnyomás) legyártásának nettó ára",1,4,3,2,6,5,5]
["500db feltétel füzet (ofszet 80g/m2, A4, 1+1 színnyomás, irkatűzés) legyártásának nettó ára",1,5,3,2,6,4,5]
["1.000db feltétel füzet (ofszet 80g/m2, A4, 1+1 színnyomás, irkatűzés) legyártásának nettó ára",5,1,3,2,6,4,5]
["5.000db bejelentőlap (ofszet 80g/m2, A4, 2+2 színnyomás, perforáció) legyártásának nettó ára",3,6,1,2,4,5,12]
["10.000db bejelentőlap (ofszet 80g/m2, A4, 2+2 színnyomás, perforáció) legyártásának nettó ára",3,6,1,2,5,4,5]
["20.000db bejelentőlap (ofszet 80g/m2, A4, 2+2 színnyomás, perforáció) legyártásának nettó ára",2,4,1,3,6,5,5]
["10.000db levélpapír (ofszet 80g/m2, A4 kifutó méret, 2+0 színnyomás) legyártásának nettó ára",3,1,4,2,6,5,5]
["20.000db levélpapír (ofszet 80g/m2, A4 kifutó méret, 2+0 színnyomás) legyártásának nettó ára",2,1,4,2,6,5,5]
["1.000db plakát (műnyomó 250g/m2, 420*594mm, 4+0 színnyomás) leszállítási határideje",3,1,1,6,3,3,5]
["2.000db feltétel füzet (ofszet 80g/m2, A4, 1+1 színnyomás, irkatűzés) legyártása - Ft/oldal",1,3,1,3,3,3,5]
["5.000db bejelentőlap (ofszet 80g/m2, A4, 2+2 színnyomás, perforáció) leszállítási határideje",3,3,3,3,1,1,49]
["5.000db levélpapír (ofszet 80g/m2, A4 kifutó méret, 2+0 színnyomás) leszállítási határideje",1,1,1,6,1,1,5]
["20.000db levélpapír (ofszet 80g/m2, A4 kifutó méret, 2+0 színnyomás) leszállítási határideje",1,3,1,6,3,3,5]
["Y0",1000,1000,1000,1000,1000,1000]
[]
[]
[]
[null,"OAM","Zátony Nyomda","Sziget Nyomda","Hegy Nyomda","Óceán Nyomda","Völgy Nyomda","Sivatag Nyomda","1 futtatás"]
[null,"Cég tőkeerőssége (saját tőke/forrás)",4,2,3,1,6,5,5]
[null,"Cég nettó árbevétele a tavalyi évben",4,6,2,1,3,5,5]
[null,"1.000db prospektus (műnyomó 150g/m2, 99*210mm, 4+4 színnyomás) legyártásának nettó ára",2,2,1,4,6,5,5]
[null,"5.000db prospektus (műnyomó 150g/m2, 99*210mm, 4+4 színnyomás) legyártásának nettó ára",3,2,1,4,6,5,5]
[null,"500db plakát (műnyomó 250g/m2, 420*594mm, 4+0 színnyomás) legyártásának nettó ára",1,2,5,2,6,4,5]
[null,"1.000db plakát (műnyomó 250g/m2, 420*594mm, 4+0 színnyomás) legyártásának nettó ára",2,1,5,3,6,4,5]
[null,"500db ajánlati szerződés (idem 56g/m2, 3 példányos, A4, 1+0 színnyomás) legyártásának nettó ára",1,3,4,2,5,6,5]
[null,"1.000db ajánlati szerződés (idem 56g/m2, 3 példányos, A4, 1+0 színnyomás) legyártásának nettó ára",1,4,3,2,6,5,5]
[null,"500db feltétel füzet (ofszet 80g/m2, A4, 1+1 színnyomás, irkatűzés) legyártásának nettó ára",1,5,3,2,6,4,5]
[null,"1.000db feltétel füzet (ofszet 80g/m2, A4, 1+1 színnyomás, irkatűzés) legyártásának nettó ára",5,1,3,2,6,4,5]
[null,"10.000db bejelentőlap (ofszet 80g/m2, A4, 2+2 színnyomás, perforáció) legyártásának nettó ára",3,6,1,2,5,4,5]
[null,"20.000db bejelentőlap (ofszet 80g/m2, A4, 2+2 színnyomás, perforáció) legyártásának nettó ára",2,4,1,3,6,5,5]
[null,"10.000db levélpapír (ofszet 80g/m2, A4 kifutó méret, 2+0 színnyomás) legyártásának nettó ára",3,1,4,2,6,5,5]
[null,"20.000db levélpapír (ofszet 80g/m2, A4 kifutó méret, 2+0 színnyomás) legyártásának nettó ára",2,1,4,2,6,5,5]
[null,"1.000db plakát (műnyomó 250g/m2, 420*594mm, 4+0 színnyomás) leszállítási határideje",3,1,1,6,3,3,5]
[null,"2.000db feltétel füzet (ofszet 80g/m2, A4, 1+1 színnyomás, irkatűzés) legyártása - Ft/oldal",1,3,1,3,3,3,5]
[null,"5.000db levélpapír (ofszet 80g/m2, A4 kifutó méret, 2+0 színnyomás) leszállítási határideje",1,1,1,6,1,1,5]
[null,"20.000db levélpapír (ofszet 80g/m2, A4 kifutó méret, 2+0 színnyomás) leszállítási határideje",1,3,1,6,3,3,5]
[]
[]
[null,"OAM","Cég tőkeerőssége (saját tőke/forrás)","Cég nettó árbevétele a tavalyi évben","1.000db prospektus (műnyomó 150g/m2, 99*210mm, 4+4 színnyomás) legyártásának nettó ára","5.000db prospektus (műnyomó 150g/m2, 99*210mm, 4+4 színnyomás) legyártásának nettó ára","500db plakát (műnyomó 250g/m2, 420*594mm, 4+0 színnyomás) legyártásának nettó ára","1.000db plakát (műnyomó 250g/m2, 420*594mm, 4+0 színnyomás) legyártásának nettó ára","500db ajánlati szerződés (idem 56g/m2, 3 példányos, A4, 1+0 színnyomás) legyártásának nettó ára","1.000db ajánlati szerződés (idem 56g/m2, 3 példányos, A4, 1+0 színnyomás) legyártásának nettó ára","500db feltétel füzet (ofszet 80g/m2, A4, 1+1 színnyomás, irkatűzés) legyártásának nettó ára","1.000db feltétel füzet (ofszet 80g/m2, A4, 1+1 színnyomás, irkatűzés) legyártásának nettó ára","10.000db bejelentőlap (ofszet 80g/m2, A4, 2+2 színnyomás, perforáció) legyártásának nettó ára","20.000db bejelentőlap (ofszet 80g/m2, A4, 2+2 színnyomás, perforáció) legyártásának nettó ára","10.000db levélpapír (ofszet 80g/m2, A4 kifutó méret, 2+0 színnyomás) legyártásának nettó ára","20.000db levélpapír (ofszet 80g/m2, A4 kifutó méret, 2+0 színnyomás) legyártásának nettó ára","1.000db plakát (műnyomó 250g/m2, 420*594mm, 4+0 színnyomás) leszállítási határideje","2.000db feltétel füzet (ofszet 80g/m2, A4, 1+1 színnyomás, irkatűzés) legyártása - Ft/oldal","5.000db levélpapír (ofszet 80g/m2, A4 kifutó méret, 2+0 színnyomás) leszállítási határideje","20.000db levélpapír (ofszet 80g/m2, A4 kifutó méret, 2+0 színnyomás) leszállítási határideje","Y0"]
[null,"Zátony Nyomda",4,4,2,3,1,2,1,1,1,5,3,2,3,2,3,1,1,1,1000]
[null,"Sziget Nyomda",2,6,2,2,2,1,3,4,5,1,6,4,1,1,1,3,1,3,1000]
[null,"Hegy Nyomda",3,2,1,1,5,5,4,3,3,3,1,1,4,4,1,1,1,1,1000]
[null,"Óceán Nyomda",1,1,4,4,2,3,2,2,2,2,2,3,2,2,6,3,6,6,1000]
[null,"Völgy Nyomda",6,3,6,6,6,6,5,6,6,6,5,6,6,6,3,3,1,3,1000]
[null,"Sivatag Nyomda",5,5,5,5,4,4,6,5,4,4,4,5,5,5,3,3,1,3,1000]

{"sheet":"vegeredmeny","index":12,"n_rows":38,"n_cols":23,"rows_kept":38,"cut":false,"hidden":false,"merged":[]}
["Azonosító","Teszt"]
["Objektumok",6]
["Attribútumok",18]
["Lepcsők",6]
["Eltolás",0]
["Leírás","COCO Y0: Teszt"]
[]
["Rangsor","X(A1)","X(A2)","X(A3)","X(A4)","X(A5)","X(A6)","X(A7)","X(A8)","X(A9)","X(A10)","X(A11)","X(A12)","X(A13)","X(A14)","X(A15)","X(A16)","X(A17)","X(A18)","Y(A19)"]
["O1",4,4,2,3,1,2,1,1,1,5,3,2,3,2,3,1,1,1,1000]
["O2",2,6,2,2,2,1,3,4,5,1,6,4,1,1,1,3,1,3,1000]
["O3",3,2,1,1,5,5,4,3,3,3,1,1,4,4,1,1,1,1,1000]
["O4",1,1,4,4,2,3,2,2,2,2,2,3,2,2,6,3,6,6,1000]
["O5",6,3,6,6,6,6,5,6,6,6,5,6,6,6,3,3,1,3,1000]
["O6",5,5,5,5,4,4,6,5,4,4,4,5,5,5,3,3,1,3,1000]
[]
["Lépcsők(1)","X(A1)","X(A2)","X(A3)","X(A4)","X(A5)","X(A6)","X(A7)","X(A8)","X(A9)","X(A10)","X(A11)","X(A12)","X(A13)","X(A14)","X(A15)","X(A16)","X(A17)","X(A18)"]
["S1","(10+5)/(2)=7.5","(5+498)/(2)=251.5","(5+5)/(2)=5","(5+5)/(2)=5","(5+5)/(2)=5","(5+457)/(2)=231","(5+5)/(2)=5","(5+5)/(2)=5","(5+5)/(2)=5","(13+5)/(2)=9","(5+5)/(2)=5","(5+5)/(2)=5","(5+5)/(2)=5","(5+5)/(2)=5","(937+493)/(2)=715","(5+5)/(2)=5","(5+5)/(2)=5","(5+5)/(2)=5"]
["S2","(4+4)/(2)=4","(4+497)/(2)=250.5","(4+4)/(2)=4","(4+4)/(2)=4","(4+4)/(2)=4","(4+456)/(2)=230","(4+4)/(2)=4","(4+4)/(2)=4","(4+4)/(2)=4","(12+4)/(2)=8","(4+4)/(2)=4","(4+4)/(2)=4","(4+4)/(2)=4","(4+4)/(2)=4","(936+492)/(2)=714","(4+4)/(2)=4","(4+4)/(2)=4","(4+4)/(2)=4"]
["S3","(3+3)/(2)=3","(3+496)/(2)=249.5","(3+3)/(2)=3","(3+3)/(2)=3","(3+3)/(2)=3","(3+455)/(2)=229","(3+3)/(2)=3","(3+3)/(2)=3","(3+3)/(2)=3","(7+3)/(2)=5","(3+3)/(2)=3","(3+3)/(2)=3","(3+3)/(2)=3","(3+3)/(2)=3","(935+491)/(2)=713","(3+3)/(2)=3","(3+3)/(2)=3","(3+3)/(2)=3"]
["S4","(2+2)/(2)=2","(2+30)/(2)=16","(2+2)/(2)=2","(2+2)/(2)=2","(2+2)/(2)=2","(2+454)/(2)=228","(2+2)/(2)=2","(2+2)/(2)=2","(2+2)/(2)=2","(6+2)/(2)=4","(2+2)/(2)=2","(2+2)/(2)=2","(2+2)/(2)=2","(2+2)/(2)=2","(934+2)/(2)=468","(2+2)/(2)=2","(2+2)/(2)=2","(2+2)/(2)=2"]
["S5","(1+1)/(2)=1","(1+29)/(2)=15","(1+1)/(2)=1","(1+1)/(2)=1","(1+1)/(2)=1","(1+1)/(2)=1","(1+1)/(2)=1","(1+1)/(2)=1","(1+1)/(2)=1","(1+1)/(2)=1","(1+1)/(2)=1","(1+1)/(2)=1","(1+1)/(2)=1","(1+1)/(2)=1","(933+1)/(2)=467","(1+1)/(2)=1","(1+1)/(2)=1","(1+1)/(2)=1"]
["S6","(0+0)/(2)=0","(0+0)/(2)=0","(0+0)/(2)=0","(0+0)/(2)=0","(0+0)/(2)=0","(0+0)/(2)=0","(0+0)/(2)=0","(0+0)/(2)=0","(0+0)/(2)=0","(0+0)/(2)=0","(0+0)/(2)=0","(0+0)/(2)=0","(0+0)/(2)=0","(0+0)/(2)=0","(932+0)/(2)=466","(0+0)/(2)=0","(0+0)/(2)=0","(0+0)/(2)=0"]
[]
["Lépcsők(1)","X(A1)","X(A2)","X(A3)","X(A4)","X(A5)","X(A6)","X(A7)","X(A8)","X(A9)","X(A10)","X(A11)","X(A12)","X(A13)","X(A14)","X(A15)","X(A16)","X(A17)","X(A18)"]
["S1",7.5,251.5,5,5,5,231,5,5,5,9,5,5,5,5,715,5,5,5]
["S2",4,250.5,4,4,4,230,4,4,4,8,4,4,4,4,714,4,4,4]
["S3",3,249.5,3,3,3,229,3,3,3,5,3,3,3,3,713,3,3,3]
["S4",2,16,2,2,2,228,2,2,2,4,2,2,2,2,468,2,2,2]
["S5",1,15,1,1,1,1,1,1,1,1,1,1,1,1,467,1,1,1]
["S6",0,0,0,0,0,0,0,0,0,0,0,0,0,0,466,0,0,0]
[]
["COCO:Y0",{"$f":"'2. futtatas'!C50","v":"Cég tőkeerőssége (saját tőke/forrás)"},{"$f":"'2. futtatas'!D50","v":"Cég nettó árbevétele a tavalyi évben"},{"$f":"'2. futtatas'!E50","v":"1.000db prospektus (műnyomó 150g/m2, 99*210mm, 4+4 színnyomás) legyártásának nettó ára"},{"$f":"'2. futtatas'!F50","v":"5.000db prospektus (műnyomó 150g/m2, 99*210mm, 4+4 színnyomás) legyártásának nettó ára"},{"$f":"'2. futtatas'!G50","v":"500db plakát (műnyomó 250g/m2, 420*594mm, 4+0 színnyomás) legyártásának nettó ára"},{"$f":"'2. futtatas'!H50","v":"1.000db plakát (műnyomó 250g/m2, 420*594mm, 4+0 színnyomás) legyártásának nettó ára"},{"$f":"'2. futtatas'!I50","v":"500db ajánlati szerződés (idem 56g/m2, 3 példányos, A4, 1+0 színnyomás) legyártásának nettó ára"},{"$f":"'2. futtatas'!J50","v":"1.000db ajánlati szerződés (idem 56g/m2, 3 példányos, A4, 1+0 színnyomás) legyártásának nettó ára"},{"$f":"'2. futtatas'!K50","v":"500db feltétel füzet (ofszet 80g/m2, A4, 1+1 színnyomás, irkatűzés) legyártásának nettó ára"},{"$f":"'2. futtatas'!L50","v":"1.000db feltétel füzet (ofszet 80g/m2, A4, 1+1 színnyomás, irkatűzés) legyártásának nettó ára"},{"$f":"'2. futtatas'!M50","v":"10.000db bejelentőlap (ofszet 80g/m2, A4, 2+2 színnyomás, perforáció) legyártásának nettó ára"},{"$f":"'2. futtatas'!N50","v":"20.000db bejelentőlap (ofszet 80g/m2, A4, 2+2 színnyomás, perforáció) legyártásának nettó ára"},{"$f":"'2. futtatas'!O50","v":"10.000db levélpapír (ofszet 80g/m2, A4 kifutó méret, 2+0 színnyomás) legyártásának nettó ára"},{"$f":"'2. futtatas'!P50","v":"20.000db levélpapír (ofszet 80g/m2, A4 kifutó méret, 2+0 színnyomás) legyártásának nettó ára"},{"$f":"'2. futtatas'!Q50","v":"1.000db plakát (műnyomó 250g/m2, 420*594mm, 4+0 színnyomás) leszállítási határideje"},{"$f":"'2. futtatas'!R50","v":"2.000db feltétel füzet (ofszet 80g/m2, A4, 1+1 színnyomás, irkatűzés) legyártása - Ft/oldal"},{"$f":"'2. futtatas'!S50","v":"5.000db levélpapír (ofszet 80g/m2, A4 kifutó méret, 2+0 színnyomás) leszállítási határideje"},{"$f":"'2. futtatas'!T50","v":"20.000db levélpapír (ofszet 80g/m2, A4 kifutó méret, 2+0 színnyomás) leszállítási határideje"},"Becslés","Hipotézis","Y-Y(*)","(Y-Y(*))/Y"]
[{"$f":"'2. futtatas'!B51","v":"Zátony Nyomda"},2,16,4,3,5,230,5,5,5,1,3,4,3,4,713,5,5,5,1018,1000,-18,-1.8]
[{"$f":"'2. futtatas'!B52","v":"Sziget Nyomda"},4,0,4,4,4,231,3,2,1,9,0,2,5,5,715,3,5,3,1000,1000,0,0]
[{"$f":"'2. futtatas'!B53","v":"Hegy Nyomda"},3,250.5,5,5,1,1,2,3,3,5,5,5,2,2,715,5,5,5,1022.5,1000,-22.5,-2.25]
[{"$f":"'2. futtatas'!B54","v":"Óceán Nyomda"},7.5,251.5,2,2,4,229,4,4,4,8,4,3,4,4,466,3,0,0,1000,1000,0,0]
[{"$f":"'2. futtatas'!B55","v":"Völgy Nyomda"},0,249.5,0,0,0,0,1,0,0,0,1,0,0,0,713,3,5,3,975.5,1000,24.5,2.4500000000000002]
[{"$f":"'2. futtatas'!B56","v":"Sivatag Nyomda"},1,15,1,1,2,228,0,1,2,4,2,1,1,1,713,3,5,3,984,1000,16,1.6]